lending/lending_fUSD_20240202
["ID","MTS","AMOUNT","RATE_DAILY","PERIOD"]
[313173483,1706879438436,-611.42276008,0.00022945,2]
[313173484,1706879438458,-355.81705485,0.00022945,2]
[313173492,1706879441315,-403.84451995,0.00022816,2]
[313173505,1706879442928,-326.39548005,0.00022816,2]
[313173506,1706879442939,-270.00451995,0.00022945,2]
[313173507,1706879443297,-649.2060731,0.00022945,2]
[313173508,1706879443354,-2464.84707742,0.00022945,2]
[313173527,1706879445928,-173.90623057,0.00022899,2]
[313173528,1706879445939,-11574.51938403,0.00022945,2]
[313173532,1706879449740,3199.69692174,0.00022076,2]
[313173533,1706879467732,3194.3964935,0.00022076,2]
[313173534,1706879499751,3198.37181468,0.00022077,2]
[313173535,1706879510747,200.0,0.00022149,2]
[313173536,1706879558959,2509.0,0.00022063,2]
[313173537,1706879699276,158.4,0.00022246,2]
[313173538,1706879755240,8570.55,0.0002221,2]
[313173539,1706879764276,295.13,0.00020331,2]
[313173541,1706879800686,2000.0,0.00022204,2]
[313173542,1706879873373,164.31,0.00017673,2]
[313173543,1706879880753,568.62,0.00022159,2]
[313173544,1706879883943,200.0,0.00022126,2]
[313173545,1706879916507,674.35,0.00022091,2]
[313173546,1706879917333,176.85,0.00022,2]
[313173547,1706879973775,207.0,0.00021614,2]
[313173548,1706880195289,280.37,0.00020174,2]
[313173549,1706880195667,280.37,0.00022438,2]
[313173550,1706880218198,158.4,0.00022233,2]
[313173551,1706880237625,184.06,0.00022067,2]
[313173552,1706880256695,179.27454278,0.00022,2]
[313173553,1706880341078,561.95,0.00022067,2]
[313173555,1706880369762,150.0,0.000235,3]
[313173556,1706880396321,150.0,0.00024,3]
[313173558,1706880432101,840.0,0.00021983,2]
[313173561,1706880461146,225.0,0.000235,3]
[313173566,1706880544279,176.85,0.00021992,2]
[313173579,1706880632100,-493.28722911,0.00022539,2]
[313173580,1706880632110,-350.78886258,0.0002254,2]
[313173581,1706880632120,-150.0,0.00022562,2]
[313173582,1706880632129,-1537.1248,0.000226,2]
[313173583,1706880632139,-1000.0,0.000227,2]
[313173584,1706880632149,-155.0,0.00022767,2]
[313173585,1706880632159,-500.0,0.00022815,2]
[313173586,1706880632168,-300.0,0.00022815,2]
[313173587,1706880632178,-150.0,0.00022815,2]
[313173588,1706880632188,-150.0,0.00022815,2]
[313173589,1706880632197,-213.79910831,0.00022816,2]
[313173590,1706880632237,-286.20089169,0.00022816,2]
[313173591,1706880632246,-500.0,0.00022816,2]
[313173592,1706880632257,-500.0,0.00022816,2]
[313173593,1706880632270,-500.0,0.00022816,2]
[313173594,1706880632282,-200.0,0.00022816,2]
[313173595,1706880632292,-727.41,0.00022867,2]
[313173596,1706880632302,-999.99,0.00022867,2]
[313173597,1706880632313,-168.5412399,0.00022892,2]
[313173598,1706880632325,-818.26057678,0.00022892,2]
[313173599,1706880632341,-485.80288671,0.00022892,2]
[313173602,1706880632378,-819.32589661,0.00022892,2]
[313173604,1706880632388,-812.855,0.00022892,2]
[313173606,1706880632397,-174.38325786,0.00022893,2]
[313173608,1706880632407,-174.38325785,0.00022895,2]
[313173610,1706880632416,-174.38325785,0.00022897,2]
[313173612,1706880632426,-174.38325785,0.00022898,2]
[313173614,1706880632435,-153.37144636,0.000229,2]
[313173616,1706880632444,-174.38325785,0.000229,2]
[313173618,1706880632454,-732.28,0.00022937,2]
[313173620,1706880632463,-215.41213944,0.00022973,2]
[313173622,1706880632473,-308.81588644,0.0002299,2]
[313173624,1706880632482,-558.0,0.00022992,2]
[313173626,1706880632492,-129438.05420606,0.00022992,2]
[313173628,1706880632509,-595.82036143,0.00022992,2]
[313173629,1706880632521,-15904.67228134,0.00022992,2]
[313173630,1706880637825,271.42,0.00020681,2]
[313173633,1706880638065,-523.8010228,0.00022893,2]
[313173634,1706880638075,-824.73597034,0.000229,2]
[313173635,1706880638087,-20622.28700686,0.00022992,2]
[313173636,1706880638107,-4963.49662326,0.00022992,2]
[313173637,1706880638118,-562.72716609,0.00022992,2]
[313173638,1706880638149,-271.42,0.00022945,2]
[313173639,1706880638159,-705.139396,0.00022992,2]
[313173640,1706880638268,-16508.55296554,0.00022992,2]
[313173641,1706880638280,-21991.90821578,0.00022992,2]
[313173642,1706880638293,-9841.947755,0.00022992,2]
[313173648,1706880641329,-144099.76973968,0.00022992,2]
[313173649,1706880641352,-359.60538072,0.00022992,2]
[313173650,1706880641369,-455.20087013,0.00022992,2]
[313173651,1706880641383,-306.20839333,0.00022992,2]
[313173652,1706880641435,-30339.03314997,0.00022992,2]
[313173653,1706880641447,-298.33106,0.00022992,2]
[313173654,1706880641459,-1062.73661376,0.00022992,2]
[313173655,1706880641471,-589.55763454,0.00022992,2]
[313173656,1706880641523,-821.32309621,0.00022992,2]
[313173657,1706880641535,-264.44645789,0.00022992,2]
[313173667,1706880643077,-724.41329783,0.00022992,2]
[313173668,1706880643195,-302.0,0.00022992,2]
[313173669,1706880643207,-17268.2145128,0.00022992,2]
[313173670,1706880643218,-500.0,0.00022992,2]
[313173671,1706880643229,-456.6805457,0.00022992,2]
[313173672,1706880643282,-849.58483316,0.00022992,2]
[313173673,1706880643297,-545.2553434,0.00022992,2]
[313173818,1706880645017,-211.36385689,0.000229,2]
[313173820,1706880645026,-21009.05239245,0.00022992,2]
[313173822,1706880645038,-2421.31069343,0.00022992,2]
[313173827,1706880645089,-3433.93829093,0.00022992,2]
[313173829,1706880645101,-833.44942547,0.00022992,2]
[313173831,1706880645112,-338.64724169,0.00022992,2]
[313173832,1706880645127,-1934.13325,0.00022992,2]
[313173833,1706880645138,-1563.90252518,0.00022992,2]
[313173834,1706880645159,-500.54994624,0.00022992,2]
[313173843,1706880646114,-179921.90514682,0.00022992,2]
[313173844,1706880646127,-4459.19999999,0.00022992,2]
[313173845,1706880646175,-88661.74145852,0.00022992,2]
[313173846,1706880646187,-18269.6277807,0.00022992,2]
[313173847,1706880646236,-7602.4124577,0.00022992,2]
[313173848,1706880646296,-850.289,0.00022992,2]
[313173849,1706880646372,-6899.25010599,0.00022992,2]
[313173850,1706880646385,-13277.38991971,0.00022992,2]
[313173852,1706880654311,3198.37181468,0.00022071,2]
[313173853,1706880658113,250.0,0.00021988,2]
[313173854,1706880658994,300.0,0.0002244,2]
[313173855,1706880697467,2000.0,0.00022277,2]
[313173863,1706880753218,431.84,0.00022074,2]
[313173872,1706880802566,468.29,0.0002197,2]
[313173878,1706880819777,161.57949318,0.0002299,3]
[313173887,1706880880911,158.37576485,2.5e-05,14]
[313173889,1706880893602,303.30223139,0.0002299,3]
[313173891,1706880919817,150.0,0.00022475,2]
[313173894,1706880949473,328.0,0.0002191,2]
[313173895,1706880956974,216.52,0.00022139,2]
[313173896,1706880960029,396.99740447,0.00022999,10]
[313173897,1706880969140,154.37585596,0.0002299,3]
[313173898,1706880972599,750.0,0.00021901,2]
[313173899,1706881042416,216.21677169,0.0002299,3]
[313173900,1706881042446,382.01374791,0.00023357,3]
[313173901,1706881063547,260.51,0.00020221,2]
[313173902,1706881063895,260.51,0.00022485,2]
[313173903,1706881230217,250.0,0.00022,2]
[313173904,1706881231520,250.0,0.00022274,2]
[313173905,1706881321927,390.24,0.00021879,2]
[313173906,1706881328206,184.06,0.00021892,2]
[313173917,1706881479563,737.6,0.00021892,2]
[313173920,1706881511617,234.45,0.0001997,2]
[313173921,1706881511953,234.45,0.00022234,2]
[313173935,1706881623862,300.0,0.00024,30]
[313173937,1706881624152,300.0,0.00024,30]
[313173938,1706881624434,300.0,0.00024,30]
[313173939,1706881624731,300.0,0.00024,30]
[313173940,1706881625164,300.0,0.00024,30]
[313173941,1706881625527,300.0,0.00024,30]
[313173942,1706881625646,201.06175537,0.00024,30]
[313173943,1706881626050,300.0,0.00024,30]
[313173948,1706881774151,207.0,0.00022098,2]
[313173956,1706881832237,-155.0,0.00022516,2]
[313173957,1706881832248,-1178.26286101,0.00022517,2]
[313173958,1706881832258,-493.28722911,0.00022518,2]
[313173960,1706881832268,-155.0,0.00022519,2]
[313173961,1706881832278,-256.88607131,0.00022548,2]
[313173962,1706881832287,-150.0,0.00022658,2]
[313173963,1706881832297,-718.21,0.00022682,2]
[313173964,1706881832307,-320.0040122,0.00022699,2]
[313173965,1706881832318,-390.5459878,0.00022699,2]
[313173966,1706881832327,-718.74054274,0.00022699,2]
[313173967,1706881832339,-19.25945726,0.00022699,2]
[313173968,1706881832349,-244.15385531,0.000227,2]
[313173969,1706881832360,-491.57614469,0.000227,2]
[313173970,1706881832370,-169.854397,0.000227,2]
[313173971,1706881832402,-547.895603,0.000227,2]
[313173972,1706881832412,-258.910397,0.000227,2]
[313173973,1706881832424,-643.38334908,0.000227,2]
[313173974,1706881832436,-97.70625392,0.000227,2]
[313173975,1706881832445,-1991.0,0.0002277,2]
[313173976,1706881832455,-150.0,0.0002289,2]
[313173977,1706881832464,-715.06,0.00022891,2]
[313173978,1706881832474,-720.11,0.00022891,2]
[313173979,1706881832483,-398.5684,0.00022892,2]
[313173980,1706881832499,-214.82587439,0.00022893,2]
[313173981,1706881832509,-736.63,0.00022894,2]
[313173982,1706881832518,-714.12,0.00022895,2]
[313173983,1706881832527,-595.71735523,0.00022897,2]
[313173984,1706881832539,-134.57264477,0.00022897,2]
[313173985,1706881832548,-713.96,0.00022898,2]
[313173986,1706881832559,-717.53,0.00022899,2]
[313173987,1706881832569,-7348.09360269,0.00022899,2]
[313173988,1706881832583,-1373.17639731,0.00022899,2]
[313173989,1706881832594,-721.78,0.00022899,2]
[313173990,1706881832604,-729.5,0.000229,2]
[313173991,1706881832619,-153.34786017,0.000229,2]
[313173993,1706881832628,-4778.83209094,0.000229,2]
[313173995,1706881832638,-214.82587439,0.000229,2]
[313173997,1706881832646,-531.02363739,0.000229,2]
[313173999,1706881832658,-442.34086818,0.000229,2]
[313174002,1706881832681,-1693.73999761,0.000229,2]
[313174003,1706881832690,-1777.17232558,0.000229,2]
[313174004,1706881832700,-205.36682409,0.000229,2]
[313174005,1706881832710,-1285.12938088,0.000229,2]
[313174006,1706881832721,-713.42,0.00022979,2]
[313174007,1706881832730,-155.40807263,0.0002299,2]
[313174008,1706881832740,-264.52400178,0.0002299,2]
[313174009,1706881832750,-2086.115818,0.0002299,2]
[313174010,1706881832760,-374.0650919,0.0002299,2]
[313174011,1706881832771,-310.97245185,0.00022991,2]
[313174012,1706881832781,-2289.8,0.00022991,2]
[313174013,1706881832791,-1171.76766314,0.00022992,2]
[313174014,1706881832803,-1456.00192747,0.00022992,2]
[313174015,1706881832814,-3844.52115975,0.00022992,2]
[313174016,1706881832826,-713.07366266,0.00022992,2]
[313174017,1706881832863,-900.0,0.00022992,2]
[313174018,1706881832875,-8704.52690776,0.00022992,2]
[313174019,1706881832886,-418.90217464,0.00022992,2]
[313174020,1706881832906,-270613.61920862,0.00022992,2]
[313174021,1706881832917,-735.3,0.00022992,2]
[313174022,1706881832926,-55183.95121689,0.00022993,2]
[313174023,1706881832942,-289.10078218,0.00022993,2]
[313174024,1706881832953,-319.28,0.00022993,2]
[313174025,1706881832966,-7746.95875996,0.00022993,2]
[313174034,1706881839830,-898.23,0.00022993,2]
[313174035,1706881839859,-507.52973018,0.00022993,2]
[313174036,1706881839924,-3469.65474511,0.00022993,2]
[313174053,1706881840150,-590.18551452,0.00022993,2]
[313174055,1706881840162,-1706.62108373,0.00022993,2]
[313174068,1706881841457,-500.0499998,0.00022993,2]
[313174069,1706881841555,-308476.63155116,0.00022993,2]
[313174070,1706881841567,-2867.0,0.00022993,2]
[313174071,1706881841578,-317.0,0.00022993,2]
[313174072,1706881841589,-342.0,0.00022993,2]
[313174073,1706881841601,-1975.805,0.00022993,2]
[313174074,1706881841612,-658.212,0.00022993,2]
[313174075,1706881841623,-155.55300753,0.00022996,2]
[313174076,1706881841635,-489.50817143,0.00022996,2]
[313174077,1706881841647,-885.02105069,0.00022996,2]
[313174078,1706881841657,-3037.94768246,0.00022996,2]
[313174079,1706881841668,-1148.40813302,0.00022997,2]
[313174080,1706881841679,-703.34718247,0.00022997,2]
[313174081,1706881841689,-180.26814938,0.00022997,2]
[313174082,1706881841700,-157.5468824,0.00022997,2]
[313174083,1706881841711,-155.39275973,0.00022997,2]
[313174084,1706881841722,-1046.62349539,0.00022997,2]
[313174085,1706881841733,-314.91823831,0.00022997,2]
[313174086,1706881841743,-400.0,0.00022997,2]
[313174087,1706881841757,-193.14,0.00022997,2]
[313174088,1706881841768,-978.9608714,0.00022997,2]
[313174089,1706881841778,-2142.32527762,0.00022999,2]
[313174090,1706881841788,-291.48520677,0.00022999,2]
[313174091,1706881841801,-1380.107342,0.00022999,2]
[313174092,1706881841812,-389.90967183,0.00022999,2]
[313174093,1706881841821,-381.76773095,0.00022999,2]
[313174094,1706881841831,-500.0,0.00022999,2]
[313174095,1706881841841,-166.81229506,0.00022999,2]
[313174096,1706881841850,-126554.76382712,0.00023,2]
[313174097,1706881841872,-2877.34765794,0.00023,2]
[313174098,1706881841891,-456.95782052,0.00023,2]
[313174119,1706881843300,-719.34,0.00022993,2]
[313174122,1706881843310,-331.53873394,0.00022993,2]
[313174146,1706881845864,-535.60613709,0.00022992,2]
[313174147,1706881845875,-107.67786336,0.00022993,2]
[313174148,1706881845891,-453.44659482,0.00022993,2]
[313174149,1706881845921,-1150.0,0.00022993,2]
[313174150,1706881845986,-14125.27219607,0.00022993,2]
[313174151,1706881845997,-480.03533669,0.00022993,2]
[313174158,1706881846097,-28809.46434437,0.00022993,2]
[313174159,1706881846106,-662.0,0.00023,2]
[313174160,1706881846116,-49108.39941903,0.00023,2]
[313174161,1706881846133,-527.07859879,0.00023,2]
[313174162,1706881846145,-1906.91344282,0.00023,2]
[313174163,1706881846157,-5039.566738,0.00023,2]
[313174165,1706881846173,-5394.17472792,0.00023,2]
[313174172,1706881846297,-532.65,0.00023,2]
[313174175,1706881846311,-600.0,0.00023,2]
[313174184,1706881846388,-120097.28759021,0.00023,2]
[313174186,1706881846399,-4226.04870871,0.00023,2]
[313174188,1706881846411,-4499.45129132,0.00023,2]
[313174194,1706881846451,-489.4804357,0.00022997,2]
[313174196,1706881846461,-84.6195643,0.00023,2]
[313174198,1706881846472,-16448.85427647,0.00023,2]
[313174267,1706881858470,3198.37181468,0.00022078,2]
[313174268,1706881903402,278.10084856,0.00022,2]
[313174269,1706881908935,840.2,0.00022279,2]
[313174270,1706881910807,378.41044653,0.00022998,3]
[313174271,1706881910923,270.97539574,0.00022999,3]
[313174272,1706881911774,442.39,0.00022279,2]
[313174273,1706881924207,300.0,0.00024,30]
[313174274,1706881950240,1085.22,0.00022247,2]
[313174275,1706881976711,378.2,0.00022073,2]
[313174276,1706881983323,177.51623728,0.00022998,3]
[313174277,1706881983497,150.1,0.00022999,3]
[313174278,1706881994391,240.77,0.0002012,2]
[313174279,1706881994910,240.77,0.00022384,2]
[313174280,1706882024450,409.92,0.00021986,2]
[313174283,1706882025982,500.0,0.00021986,2]
[313174285,1706882037746,250.0,0.00021986,2]
[313174287,1706882057919,348.02239968,0.00022999,3]
[313174288,1706882067198,2000.0,0.00021951,2]
[313174289,1706882116051,151.53,0.00021945,2]
[313174290,1706882118683,250.0,0.00021926,2]
[313174309,1706882199649,214.57,0.00022017,2]
[313174310,1706882229310,293.89,0.00021869,2]
[313174311,1706882231191,158.92,0.00021869,2]
[313174312,1706882248951,2887.76,0.00021864,2]
[313174313,1706882250626,1259.48,0.00021864,2]
[313174314,1706882304959,254.4,0.00021855,2]
[313174315,1706882331060,168.93,0.00021831,2]
[313174316,1706882339021,368.65,0.00021831,2]
[313174317,1706882426176,216.69,0.00019926,2]
[313174318,1706882426517,216.69,0.0002219,2]
[313174319,1706882482979,672.06,0.00021844,2]
[313174320,1706882494226,848.83921823,0.00021831,2]
[313174321,1706882500096,403.19810569,0.00021524,2]
[313174322,1706882500374,534.63116618,0.0002219,2]
[313174323,1706882500548,3199.69692174,0.00022074,2]
[313174324,1706882505523,808.18403302,0.0002219,2]
[313174325,1706882510402,370.64138861,0.000225,2]
[313174326,1706882512335,261.7948,0.00022457,2]
[313174327,1706882518512,3197.04670762,0.00022074,2]
[313174328,1706882522344,227.15782808,0.0002219,2]
[313174329,1706882525517,808.98550887,0.0002219,2]
[313174330,1706882530220,849.18104616,0.0002219,2]
[313174331,1706882538080,402.74084734,0.00021524,2]
[313174332,1706882538515,307.45473556,0.00022074,2]
[313174333,1706882538849,161.94812689,0.00020695,2]
[313174334,1706882543511,808.27654529,0.0002219,2]
[313174335,1706882546390,848.4973903,0.0002219,2]
[313174336,1706882550335,250.0,0.00021918,2]
[313174337,1706882556090,403.19810569,0.00021524,2]
[313174340,1706882559534,9332.20980392,0.00022079,2]
[313174341,1706882561513,807.52213624,0.0002219,2]
[313174342,1706882562223,508.19107691,0.0002219,2]
[313174343,1706882615241,176.35630077,0.00022,2]
[313174344,1706882618040,2000.0,0.00021885,2]
[313174345,1706882624733,1500.0,0.000225,2]
[313174346,1706882625164,1548.033514,0.00022,2]
[313174347,1706882663117,214.57,0.00022042,2]
[313174348,1706882671345,500.0,0.00022,2]
[313174349,1706882683425,150.0,0.00022,2]
[313174350,1706882683928,2328.73849707,0.00022,2]
[313174351,1706882685525,5662.1267808,0.0002189,2]
[313174353,1706882777152,151.01192556,0.0002243,2]
[313174354,1706882782323,151.01192552,0.00022473,2]
[313174355,1706882817424,729.8522769,0.00021,2]
[313174357,1706882818753,948.45035289,0.0002189,2]
[313174358,1706882821496,2185.31764007,0.00022248,2]
[313174359,1706882824284,1029.64734929,0.0002189,2]
[313174360,1706882826140,403.19810569,0.00021799,2]
[313174361,1706882832689,884.38873617,0.00022473,2]
[313174362,1706882833693,500.0,0.00022473,2]
[313174363,1706882844154,403.12005535,0.00021799,2]
[313174364,1706882853586,500.0,0.00022473,2]
[313174365,1706882862454,307.2,0.00021801,2]
[313174366,1706882904968,150.00000045,0.00024,3]
[313174367,1706882954871,195.02,0.00019893,2]
[313174368,1706882955115,195.02,0.00022157,2]
[313174369,1706882975244,1207.4376444,0.000225,2]
[313174370,1706882978304,493.28722911,0.000225,2]
[313174374,1706883009057,544.57626637,0.000225,2]
[313174375,1706883011159,920.6223945,0.000225,2]
[313174376,1706883012879,1178.26286101,0.000225,2]
[313174377,1706883013845,284.2416514,0.000225,2]
[313174378,1706883016691,892.78100991,0.000225,2]
[313174386,1706883033579,-155.0,0.00022503,2]
[313174387,1706883033588,-271.73,0.00022503,2]
[313174388,1706883033600,-1486.43739774,0.00022503,2]
[313174389,1706883033612,-99.95628142,0.00022503,2]
[313174390,1706883033622,-200.04371858,0.00022504,2]
[313174391,1706883033637,-44.95628142,0.00022504,2]
[313174392,1706883033646,-150.0,0.00022504,2]
[313174393,1706883033655,-150.0,0.00022504,2]
[313174394,1706883033663,-3652.33027644,0.00022515,2]
[313174395,1706883033673,-151.01192552,0.00022515,2]
[313174396,1706883033682,-150.0,0.00022548,2]
[313174397,1706883033691,-151.01192552,0.00022558,2]
[313174398,1706883033701,-499.99,0.00022558,2]
[313174399,1706883033710,-155.0,0.00022592,2]
[313174400,1706883033719,-151.01192552,0.00022601,2]
[313174401,1706883033728,-151.01192552,0.00022644,2]
[313174402,1706883033747,-151.01192552,0.00022686,2]
[313174403,1706883033758,-1000.0,0.000227,2]
[313174404,1706883033768,-151.01192552,0.00022729,2]
[313174405,1706883033777,-151.01192552,0.00022772,2]
[313174406,1706883033787,-142.72486149,0.0002279,2]
[313174407,1706883033821,-277.93905889,0.0002279,2]
[313174408,1706883033833,-72.62330873,0.0002279,2]
[313174409,1706883033843,-978.91097796,0.0002279,2]
[313174410,1706883033853,-270.83268122,0.0002279,2]
[313174411,1706883033862,-188.01300368,0.0002279,2]
[313174412,1706883033872,-578.6637511,0.00022791,2]
[313174413,1706883033882,-204.3338773,0.00022791,2]
[313174432,1706883037791,-371.03538371,0.0002279,2]
[313174433,1706883037801,-331.6322753,0.00022791,2]
[313174434,1706883037810,-362.88234099,0.00022792,2]
[313174440,1706883040105,-411.36312889,0.0002279,2]
[313174441,1706883040115,-25601.40482361,0.00022792,2]
[313174442,1706883040128,-611.3161442,0.00022792,2]
[313174455,1706883043109,-2541.7800912,0.00022792,2]
[313174456,1706883043118,-23023.7364443,0.00022792,2]
[313174459,1706883043289,-11336.27715545,0.00022792,2]
[313174460,1706883043301,-340.58830468,0.00022792,2]
[313174461,1706883043313,-2170.90794213,0.00022792,2]
[313174462,1706883043474,-1194.75,0.00022792,2]
[313174463,1706883043485,-10514.6007,0.00022792,2]
[313174464,1706883043573,-2457.09624937,0.00022792,2]
[313174465,1706883043585,-1771.22584061,0.00022792,2]
[313174466,1706883043597,-1321.86465,0.00022792,2]
[313174467,1706883043608,-634.35164984,0.00022792,2]
[313174468,1706883043619,-455.39861255,0.00022792,2]
[313174469,1706883043630,-4236.87458681,0.00022792,2]
[313174475,1706883043972,-17976.84376426,0.00022792,2]
[313174476,1706883043981,-160.51346516,0.00022798,2]
[313174477,1706883043990,-16186.9627,0.00022799,2]
[313174478,1706883044000,-6860.4117,0.00022799,2]
[313174479,1706883044010,-308.9496,0.00022799,2]
[313174480,1706883044020,-728.94,0.00022806,2]
[313174481,1706883044029,-151.01192552,0.00022815,2]
[313174482,1706883044038,-151.01192552,0.00022857,2]
[313174483,1706883044047,-188.46955123,0.00022881,2]
[313174484,1706883044058,-13337.56317635,0.00022882,2]
[313174485,1706883044067,-8359.8173,0.00022892,2]
[313174486,1706883044076,-2245.3057,0.00022892,2]
[313174487,1706883044085,-54833.2509,0.00022892,2]
[313174488,1706883044095,-1335.86843451,0.00022897,2]
[313174490,1706883044104,-1335.86843449,0.00022897,2]
[313174492,1706883044114,-1335.86843449,0.00022898,2]
[313174494,1706883044123,-59755.91023578,0.00022898,2]
[313174498,1706883044152,-17608.00596598,0.00022898,2]
[313174501,1706883044163,-413.07658227,0.00022898,2]
[313174511,1706883045429,-11574.99999939,0.00022898,2]
[313174516,1706883045822,-10.72408415,0.00022898,2]
[313174517,1706883045834,-1055.40624288,0.00022898,2]
[313174518,1706883048234,-571.57500001,0.00022898,2]
[313174536,1706883051417,222.80459909,0.00022897,4]
[313174537,1706883066518,299.69259314,0.00022897,10]
[313174538,1706883081856,6159.30974182,0.000225,2]
[313174539,1706883096450,-3184.99180527,0.0002279,2]
[313174540,1706883096476,-2500.0,0.00022791,2]
[313174541,1706883096500,-518.38382827,0.00022791,2]
[313174542,1706883096526,-4559.9539,0.00022792,2]
[313174543,1706883096549,-413.39356249,0.00022896,2]
[313174544,1706883096574,-243.00714897,0.00022896,2]
[313174545,1706883096597,-224.85530043,0.00022896,2]
[313174546,1706883096621,-2909.36169139,0.00022896,2]
[313174547,1706883096645,-3338.37650623,0.00022896,2]
[313174548,1706883096669,-155.0,0.00022897,2]
[313174549,1706883096693,-6456.21854522,0.00022897,2]
[313174550,1706883096716,-492.42544555,0.00022897,2]
[313174551,1706883096740,-1688.84387781,0.00022897,2]
[313174552,1706883096763,-493.28722911,0.00022897,2]
[313174553,1706883096788,-1335.86843449,0.00022898,2]
[313174554,1706883096815,-8503.4,0.00022898,2]
[313174555,1706883096840,-1000.0,0.00022898,2]
[313174556,1706883096865,-1335.86843449,0.00022898,2]
[313174557,1706883096891,-1335.86843449,0.00022898,2]
[313174558,1706883096915,-1335.86843449,0.00022899,2]
[313174559,1706883096940,-35400.0274213,0.00022899,2]
[313174560,1706883107781,158.92,0.00022187,2]
[313174563,1706883144223,793.03230004,0.00022994,3]
[313174564,1706883144297,1031.81955378,0.00022996,3]
[313174568,1706883217054,435.24911185,0.00022994,3]
[313174569,1706883217131,355.19890234,0.00022999,3]
[313174570,1706883221734,1500.0,0.000225,2]
[313174571,1706883222209,1500.0,0.00022,2]
[313174572,1706883222656,2500.0,0.000215,2]
[313174573,1706883231757,1000.0,0.00022044,2]
[313174574,1706883278299,175.89,0.00017586,2]
[313174575,1706883289787,197.20745331,0.00022994,3]
[313174576,1706883289882,244.97419286,0.00022999,3]
[313174652,1706883354181,256.0,0.00021979,2]
[313174653,1706883362668,227.52531782,0.00022997,3]
[313174654,1706883362759,190.72422086,0.00022999,3]
[313174663,1706883452588,175.51,0.00020095,2]
[313174664,1706883452791,175.51,0.00022359,2]
[313174665,1706883484388,527.90566707,0.00021847,2]
[313174675,1706883522624,1566.736676,0.000225,2]
[313174676,1706883524820,5202.33214498,0.00022359,2]
[313174692,1706883648737,200.0,0.00022033,2]
[313174693,1706883663671,273.65822875,0.00024,30]
[313174697,1706883721955,2482.12405516,0.00022307,2]
[313174698,1706883727152,10909.35,0.00022002,2]
[313174699,1706883739945,466.060242,0.00022307,2]
[313174700,1706883828482,213.33,0.00021996,2]
[313174701,1706883840018,204.76,0.00021991,2]
[313174702,1706883886978,200.0,0.00021985,2]
[313174703,1706883888010,150.0,0.00022,2]
[313174704,1706883897698,157.95,0.00020072,2]
[313174705,1706883897941,157.95,0.00022335,2]
[313174706,1706883909159,327.99,0.00021989,2]
[313174707,1706883923114,2000.0,0.00022005,2]
[313174708,1706883933831,207.0,0.00022415,2]
[313174709,1706884069649,157.63,0.0002213,2]
[313174710,1706884093888,879.39322717,0.000225,2]
[313174711,1706884106049,1314.18,0.00021966,2]
[313174713,1706884130135,164.65,0.00021967,2]
[313174714,1706884136719,4264.57,0.00021967,2]
[313174715,1706884140250,840.0,0.00021967,2]
[313174716,1706884165165,23900.0,0.00021964,2]
[313174729,1706884231780,-155.0,0.00022688,2]
[313174730,1706884231790,-3636.54635064,0.00022688,2]
[313174731,1706884231799,-691.58394825,0.00022689,2]
[313174732,1706884231809,-3552.43,0.00022694,2]
[313174733,1706884231818,-300.0,0.00022694,2]
[313174734,1706884231827,-150.0,0.00022694,2]
[313174735,1706884231836,-180.8443002,0.00022695,2]
[313174736,1706884231861,-5902.87121184,0.00022695,2]
[313174737,1706884231871,-1000.0,0.000227,2]